fUST/lending_fUST_20260320
["ID","MTS","AMOUNT","RATE_DAILY","PERIOD"]
[408612095,1773946241123,-388.7586929,5e-05,2]
[408612117,1773946243835,-111.2413071,5e-05,2]
[408612118,1773946243845,-500.0,5e-05,2]
[408612119,1773946243856,-500.0,5e-05,2]
[408612120,1773946243865,-500.0,5e-05,2]
[408612121,1773946243875,-513.66731226,5e-05,2]
[408612122,1773946243886,-500.0,5e-05,2]
[408612123,1773946243896,-500.0,5e-05,2]
[408612124,1773946243905,-500.0,5e-05,2]
[408612125,1773946243915,-500.0,5e-05,2]
[408612126,1773946243925,-500.0,5e-05,2]
[408612127,1773946243935,-500.0,5e-05,2]
[408612128,1773946243946,-500.0,5e-05,2]
[408612129,1773946243956,-500.0,5e-05,2]
[408612130,1773946243965,-500.0,5e-05,2]
[408612131,1773946243975,-500.0,5e-05,2]
[408612132,1773946243985,-500.0,5e-05,2]
[408612134,1773946243995,-500.0,5e-05,2]
[408612135,1773946244005,-500.0,5e-05,2]
[408612136,1773946244015,-500.0,5e-05,2]
[408612137,1773946244024,-500.0,5e-05,2]
[408612138,1773946244033,-500.0,5e-05,2]
[408612139,1773946244043,-287.85606156,5e-05,2]
[408612140,1773946244056,-212.14393844,5e-05,2]
[408612141,1773946244066,-500.0,5e-05,2]
[408612142,1773946244078,-500.0,5e-05,2]
[408612143,1773946244088,-500.0,5e-05,2]
[408612144,1773946244098,-500.0,5e-05,2]
[408612145,1773946244107,-500.0,5e-05,2]
[408612146,1773946244117,-500.0,5e-05,2]
[408612147,1773946244127,-250.04736293,5e-05,2]
[408612150,1773946246565,-249.95263707,5e-05,2]
[408612151,1773946246575,-500.0,5e-05,2]
[408612152,1773946246585,-500.0,5e-05,2]
[408612153,1773946246595,-500.0,5e-05,2]
[408612154,1773946246605,-500.0,5e-05,2]
[408612155,1773946246914,-500.0,5e-05,2]
[408612156,1773946246925,-500.0,5e-05,2]
[408612157,1773946246934,-500.0,5e-05,2]
[408612158,1773946246944,-500.0,5e-05,2]
[408612159,1773946246954,-500.0,5e-05,2]
[408612160,1773946246963,-500.0,5e-05,2]
[408612161,1773946246972,-500.0,5e-05,2]
[408612162,1773946246980,-500.0,5e-05,2]
[408612163,1773946246989,-500.0,5e-05,2]
[408612164,1773946246998,-500.0,5e-05,2]
[408612165,1773946247008,-500.0,5e-05,2]
[408612166,1773946247018,-500.0,5e-05,2]
[408612167,1773946247027,-500.0,5e-05,2]
[408612168,1773946247036,-500.0,5e-05,2]
[408612169,1773946247045,-570.26214204,5e-05,2]
[408612170,1773946247055,-500.0,5e-05,2]
[408612171,1773946247063,-500.0,5e-05,2]
[408612172,1773946247074,-500.0,5e-05,2]
[408612173,1773946247087,-500.0,5e-05,2]
[408612174,1773946247096,-500.0,5e-05,2]
[408612175,1773946247106,-500.0,5e-05,2]
[408612176,1773946247115,-500.0,5e-05,2]
[408612177,1773946247125,-500.0,5e-05,2]
[408612178,1773946247134,-500.0,5e-05,2]
[408612179,1773946247143,-500.0,5e-05,2]
[408612180,1773946247152,-500.0,5e-05,2]
[408612181,1773946247162,-500.0,5e-05,2]
[408612182,1773946247171,-500.0,5e-05,2]
[408612183,1773946247180,-550.0,5e-05,2]
[408612184,1773946247190,-500.0,5e-05,2]
[408612185,1773946247200,-500.0,5e-05,2]
[408612186,1773946247209,-500.0,5e-05,2]
[408612187,1773946247219,-500.0,5e-05,2]
[408612188,1773946247228,-500.0,5e-05,2]
[408612189,1773946247237,-500.0,5e-05,2]
[408612190,1773946247246,-500.0,5e-05,2]
[408612191,1773946247256,-500.0,5e-05,2]
[408612192,1773946247266,-500.0,5e-05,2]
[408612193,1773946247276,-500.0,5e-05,2]
[408612194,1773946247285,-500.0,5e-05,2]
[408612195,1773946247295,-500.0,5e-05,2]
[408612196,1773946247304,-500.0,5e-05,2]
[408612197,1773946247314,-500.0,5e-05,2]
[408612198,1773946247323,-250.0,5e-05,2]
[408612199,1773946247333,-500.0,5e-05,2]
[408612200,1773946247342,-2010.24734182,5e-05,2]
[408612201,1773946247352,-4342.92741429,5e-05,2]
[408612202,1773946247361,-4818.75711379,5e-05,2]
[408612203,1773946247371,-4914.59184843,5e-05,2]
[408612204,1773946247380,-5294.5868134,5e-05,2]
[408612205,1773946247389,-500.0,5e-05,2]
[408612206,1773946247398,-500.0,5e-05,2]
[408612207,1773946247408,-382.8271127,5e-05,2]
[408612208,1773946247417,-500.0,5e-05,2]
[408612209,1773946247427,-500.0,5e-05,2]
[408612210,1773946247436,-500.0,5e-05,2]
[408612211,1773946247449,-500.0,5e-05,2]
[408612212,1773946247458,-500.0,5e-05,2]
[408612213,1773946247467,-500.0,5e-05,2]
[408612214,1773946247476,-500.0,5e-05,2]
[408612215,1773946247486,-563.37551889,5e-05,2]
[408612216,1773946247495,-563.37551889,5e-05,2]
[408612217,1773946247504,-563.37551889,5e-05,2]
[408612218,1773946247513,-563.37551889,5e-05,2]
[408612219,1773946247523,-563.37551889,5e-05,2]
[408612220,1773946247532,-563.37551889,5e-05,2]
[408612221,1773946247542,-563.37551889,5e-05,2]
[408612222,1773946247551,-563.37551889,5e-05,2]
[408612223,1773946247561,-563.37551889,5e-05,2]
[408612224,1773946247570,-563.37551889,5e-05,2]
[408612225,1773946247579,-563.37551889,5e-05,2]
[408612226,1773946247590,-563.37551889,5e-05,2]
[408612227,1773946247600,-563.37551889,5e-05,2]
[408612228,1773946247610,-563.37551889,5e-05,2]
[408612229,1773946247622,-563.37551889,5e-05,2]
[408612230,1773946247633,-563.37551889,5e-05,2]
[408612231,1773946247643,-563.37551889,5e-05,2]
[408612232,1773946247653,-563.37551889,5e-05,2]
[408612233,1773946247662,-563.37551889,5e-05,2]
[408612234,1773946247672,-563.37551889,5e-05,2]
[408612235,1773946247683,-563.37551889,5e-05,2]
[408612236,1773946247693,-563.37551889,5e-05,2]
[408612237,1773946247703,-563.37551889,5e-05,2]
[408612238,1773946247712,-563.37551889,5e-05,2]
[408612239,1773946247722,-563.37551889,5e-05,2]
[408612240,1773946247732,-563.37551889,5e-05,2]
[408612241,1773946247743,-563.37551889,5e-05,2]
[408612242,1773946247753,-563.37551889,5e-05,2]
[408612243,1773946247762,-563.37551889,5e-05,2]
[408612244,1773946247771,-563.37551889,5e-05,2]
[408612245,1773946247782,-563.37551889,5e-05,2]
[408612246,1773946247792,-563.37551889,5e-05,2]
[408612247,1773946247804,-563.37551889,5e-05,2]
[408612248,1773946247814,-563.37551889,5e-05,2]
[408612249,1773946247825,-563.37551889,5e-05,2]
[408612250,1773946247836,-563.37551889,5e-05,2]
[408612251,1773946247846,-563.37551889,5e-05,2]
[408612252,1773946247855,-563.37551889,5e-05,2]
[408612253,1773946247864,-563.37551889,5e-05,2]
[408612254,1773946247874,-563.37551889,5e-05,2]
[408612255,1773946247883,-563.37551889,5e-05,2]
[408612256,1773946247894,-563.37551889,5e-05,2]
[408612257,1773946247903,-563.37551889,5e-05,2]
[408612258,1773946247913,-563.37551889,5e-05,2]
[408612259,1773946247923,-563.37551889,5e-05,2]
[408612260,1773946247934,-563.37551889,5e-05,2]
[408612261,1773946247943,-563.37551889,5e-05,2]
[408612262,1773946247953,-563.37551889,5e-05,2]
[408612263,1773946247963,-563.37551889,5e-05,2]
[408612264,1773946247972,-563.37551889,5e-05,2]
[408612265,1773946247983,-563.37551889,5e-05,2]
[408612266,1773946247992,-563.37551889,5e-05,2]
[408612267,1773946248002,-563.37551889,5e-05,2]
[408612268,1773946248011,-563.37551889,5e-05,2]
[408612269,1773946248020,-563.37551889,5e-05,2]
[408612270,1773946248029,-563.37551889,5e-05,2]
[408612271,1773946248038,-563.37551889,5e-05,2]
[408612272,1773946248047,-563.37551889,5e-05,2]
[408612273,1773946248056,-563.37551889,5e-05,2]
[408612274,1773946248065,-563.37551889,5e-05,2]
[408612275,1773946248074,-561.36346348,5e-05,2]
[408612276,1773946248088,-561.36346348,5e-05,2]
[408612277,1773946248097,-561.36346348,5e-05,2]
[408612278,1773946248106,-561.36346348,5e-05,2]
[408612279,1773946248115,-561.36346348,5e-05,2]
[408612280,1773946248126,-561.36346348,5e-05,2]
[408612281,1773946248135,-561.36346348,5e-05,2]
[408612282,1773946248144,-561.36346348,5e-05,2]
[408612283,1773946248155,-561.36346348,5e-05,2]
[408612284,1773946248164,-561.36346348,5e-05,2]
[408612285,1773946248174,-561.36346348,5e-05,2]
[408612286,1773946248185,-561.36346348,5e-05,2]
[408612287,1773946248194,-561.36346348,5e-05,2]
[408612288,1773946248204,-561.36346348,5e-05,2]
[408612289,1773946248213,-561.36346348,5e-05,2]
[408612290,1773946248223,-561.36346348,5e-05,2]
[408612291,1773946248232,-561.36346348,5e-05,2]
[408612292,1773946248241,-561.36346348,5e-05,2]
[408612293,1773946248250,-561.36346348,5e-05,2]
[408612294,1773946248259,-561.36346348,5e-05,2]
[408612295,1773946248268,-561.36346348,5e-05,2]
[408612296,1773946248277,-561.36346348,5e-05,2]
[408612297,1773946248286,-561.36346348,5e-05,2]
[408612298,1773946248295,-561.36346348,5e-05,2]
[408612299,1773946248303,-561.36346348,5e-05,2]
[408612300,1773946248313,-561.36346348,5e-05,2]
[408612301,1773946248323,-561.36346348,5e-05,2]
[408612302,1773946248332,-561.36346337,5e-05,2]
[408612303,1773946248341,-335.05411608,5e-05,2]
[408612304,1773946248350,-1000.0,5e-05,2]
[408612305,1773946248359,-1000.0,5e-05,2]
[408612306,1773946248369,-1000.0,5e-05,2]
[408612307,1773946248378,-1000.0,5e-05,2]
[408612308,1773946248388,-1000.0,5e-05,2]
[408612309,1773946248397,-9894.2017389,5e-05,2]
[408612310,1773946248407,-9894.2017389,5e-05,2]
[408612311,1773946248416,-9894.2017389,5e-05,2]
[408612312,1773946248426,-9894.2017389,5e-05,2]
[408612313,1773946248435,-9894.2017389,5e-05,2]
[408612314,1773946248445,-500.466,5.006e-05,2]
[408612315,1773946248456,-720.0,5.029e-05,2]
[408612316,1773946248466,-151.0,5.044e-05,2]
[408612317,1773946248476,-461.67526834,5.044e-05,2]
[408612318,1773946248486,-557.5788265,5.044e-05,2]
[408612319,1773946248495,-168.3888056,5.044e-05,2]
[408612320,1773946248504,-2230.315306,5.044e-05,2]
[408612321,1773946248514,-502.23,5.1e-05,2]
[408612322,1773946248524,-587.0,5.145e-05,2]
[408612323,1773946248533,-2191.713771,5.171e-05,2]
[408612324,1773946248542,-2191.713771,5.235e-05,2]
[408612325,1773946248551,-2191.713771,5.3e-05,2]
[408612326,1773946248560,-2191.713771,5.364e-05,2]
[408612327,1773946248569,-38000.0,5.417e-05,2]
[408612328,1773946248579,-12744.83233342,5.426e-05,2]
[408612329,1773946248952,-621.46914261,5.426e-05,2]
[408612330,1773946824134,-3532.5456981,3.214e-05,2]
[408612362,1773947431551,-284.79628156,2.996e-05,2]
[408612368,1773947431605,-283.624,2.996e-05,2]
[408612414,1773947438190,-431.87462275,2.996e-05,2]
[408612415,1773947438201,-287.01161598,2.996e-05,2]
[408612416,1773947438210,-1140.85579998,3.026e-05,2]
[408612435,1773947442989,-3859.14420002,3.026e-05,2]
[408612436,1773947443002,-170.980547,3.312e-05,2]
[408612437,1773947443014,-300.0,4.162e-05,2]
[408612438,1773947443024,-500.0,4.163e-05,2]
[408612439,1773947443035,-500.0,4.163e-05,2]
[408612445,1773947443328,-500.0,4.163e-05,2]
[408612446,1773947443347,-500.0,4.163e-05,2]
[408612447,1773947443357,-500.0,4.163e-05,2]
[408612448,1773947443366,-74167.5697718,4.18e-05,2]
[408612449,1773947443378,-14291.12450927,4.18e-05,2]
[408612457,1773948624242,-1256.0,3.151e-05,2]
[408612501,1773948631791,-3744.0,3.151e-05,2]
[408612503,1773948631803,-821.815837,3.183e-05,2]
[408612506,1773948631822,-821.815837,3.316e-05,2]
[408612507,1773948631833,-347.61539864,3.439e-05,2]
[408612509,1773948631842,-821.815837,3.45e-05,2]
[408612510,1773948631852,-3193.53234453,3.474e-05,2]
[408612512,1773948631862,-300.0,3.508e-05,2]
[408612514,1773948631871,-300.0,3.508e-05,2]
[408612516,1773948631880,-1200.0,3.508e-05,2]
[408612517,1773948631890,-300.0,3.578e-05,2]
[408612518,1773948631899,-300.0,3.578e-05,2]
[408612520,1773948631910,-300.0,3.578e-05,2]
[408612522,1773948631919,-300.0,3.578e-05,2]
[408612523,1773948631929,-300.0,3.578e-05,2]
[408612524,1773948631939,-300.0,3.578e-05,2]
[408612525,1773948631948,-300.0,3.578e-05,2]
[408612526,1773948631957,-300.0,3.578e-05,2]
[408612527,1773948631967,-300.0,3.578e-05,2]
[408612528,1773948631976,-300.0,3.578e-05,2]
[408612529,1773948631987,-300.0,3.578e-05,2]
[408612530,1773948631997,-300.0,3.578e-05,2]
[408612531,1773948632006,-300.0,3.578e-05,2]
[408612532,1773948632015,-300.0,3.578e-05,2]
[408612533,1773948632024,-300.0,3.578e-05,2]
[408612534,1773948632035,-821.815837,3.584e-05,2]
[408612535,1773948632044,-600.0,3.649e-05,2]
[408612536,1773948632053,-821.815837,3.718e-05,2]
[408612537,1773948632063,-821.815837,3.852e-05,2]
[408612538,1773948632072,-420.0,3.859e-05,2]
[408612539,1773948632081,-500.0,3.953e-05,2]
[408612540,1773948632090,-500.0,3.953e-05,2]
[408612541,1773948632100,-500.0,3.953e-05,2]
[408612542,1773948632109,-500.0,3.953e-05,2]
[408612543,1773948632118,-500.0,3.953e-05,2]
[408612544,1773948632128,-500.0,3.953e-05,2]
[408612545,1773948632137,-2746.01454923,3.98e-05,2]
[408612546,1773948632149,-1580.26245559,3.98e-05,2]
[408612547,1773948632169,-3093.05945852,3.98e-05,2]
[408612562,1773948637854,-57570.41566602,3.98e-05,2]
[408612563,1773948637867,-428.47,3.98e-05,2]
[408612564,1773948637932,-280.63815405,3.98e-05,2]
[408612565,1773948637962,-747.13445252,3.98e-05,2]
[408612574,1773948640343,-7112.75941948,3.98e-05,2]
[408612590,1773948642987,-1994.81770619,3.98e-05,2]
[408612602,1773948643096,-175297.74758493,3.98e-05,2]
[408612604,1773948643108,-43966.37526459,3.98e-05,2]
[408612609,1773948643149,-585.97660249,3.98e-05,2]
[408612612,1773948643162,-7173.62971349,3.98e-05,2]
[408612715,1773948645999,-11624.54437402,3.98e-05,2]
[408612716,1773948646056,-1042.12160456,3.98e-05,2]
[408612717,1773948646069,-19390.48311622,3.98e-05,2]
[408612718,1773948646217,-638.29172964,3.98e-05,2]
[408612727,1773949760100,-199.15352349,2.684e-05,2]
[408612737,1773949831930,-5000.0,2.657e-05,2]
[408612740,1773949831942,-125.56418201,2.684e-05,2]
[408612742,1773949831953,-180.10406599,3.752e-05,2]
[408612790,1773949838169,-119.89593401,3.752e-05,2]
[408612791,1773949838180,-1200.0,3.752e-05,2]
[408612792,1773949838191,-500.0,3.753e-05,2]
[408612793,1773949838202,-500.0,3.753e-05,2]
[408612794,1773949838211,-500.0,3.753e-05,2]
[408612795,1773949838220,-574.73987736,3.753e-05,2]
[408612796,1773949838229,-500.0,3.753e-05,2]
[408612797,1773949838238,-488856.41196832,3.78e-05,2]
[408612798,1773949838249,-232762.79782187,3.78e-05,2]
[408612799,1773949838258,-1976268.56386739,3.78e-05,2]
[408612800,1773949838267,-500.0,3.853e-05,2]
[408612801,1773949838276,-500.0,3.853e-05,2]
[408612802,1773949838286,-500.0,3.853e-05,2]
[408612803,1773949838295,-3160.8351804,3.962e-05,2]
[408612804,1773949838305,-300.0,4.059e-05,2]
[408612805,1773949838314,-300.0,4.059e-05,2]
[408612806,1773949838323,-300.0,4.059e-05,2]
[408612807,1773949838333,-300.0,4.059e-05,2]
[408612808,1773949838342,-300.0,4.059e-05,2]
[408612809,1773949838351,-300.0,4.059e-05,2]
[408612810,1773949838360,-300.0,4.059e-05,2]
[408612811,1773949838370,-300.0,4.059e-05,2]
[408612812,1773949838379,-300.0,4.059e-05,2]
[408612813,1773949838391,-300.0,4.059e-05,2]
[408612815,1773949838400,-300.0,4.059e-05,2]
[408612816,1773949838410,-300.0,4.059e-05,2]
[408612817,1773949838420,-300.0,4.059e-05,2]
[408612818,1773949838430,-300.0,4.059e-05,2]
[408612819,1773949838439,-300.0,4.059e-05,2]
[408612820,1773949838448,-600.0,4.059e-05,2]
[408612821,1773949838457,-420.0,4.127e-05,2]
[408612822,1773949838467,-1680.0,4.127e-05,2]
[408612823,1773949838476,-1000.0,4.301e-05,2]
[408612824,1773949838484,-1000.0,4.301e-05,2]
[408612825,1773949838494,-1000.0,4.301e-05,2]
[408612826,1773949838503,-1000.0,4.301e-05,2]
[408612827,1773949838513,-641.0,4.351e-05,2]
[408612828,1773949838521,-1397.0,4.351e-05,2]
[408612829,1773949838530,-2189.0,4.351e-05,2]
[408612830,1773949838540,-181.531,4.351e-05,2]
[408612831,1773949838549,-438.0,4.351e-05,2]
[408612832,1773949838558,-185.249,4.351e-05,2]
[408612833,1773949838567,-545.02611365,4.401e-05,2]
[408612834,1773949838576,-1000.0,4.401e-05,2]
[408612835,1773949838585,-500.0,4.401e-05,2]
[408612836,1773949838594,-705.27766,4.464e-05,2]
[408612837,1773949838603,-720.0,4.464e-05,2]
[408612838,1773949838612,-439.0,4.5e-05,2]
[408612839,1773949838621,-374.0,4.539e-05,2]
[408612840,1773949838632,-369.0,4.539e-05,2]
[408612841,1773949838641,-157.3687172,4.576e-05,2]
[408612842,1773949838650,-500.0,4.729e-05,2]
[408612843,1773949838659,-414.94102823,4.848e-05,2]
[408612844,1773949838668,-1500.0,4.848e-05,2]
[408612845,1773949838678,-1500.0,4.848e-05,2]
[408612846,1773949838686,-1500.0,4.848e-05,2]
[408612847,1773949838696,-864.0,4.911e-05,2]
[408612848,1773949838705,-1500.0,4.948e-05,2]
[408612849,1773949838714,-1058.35294563,5e-05,2]
[408612850,1773949838723,-3558.00246276,5e-05,2]
[408612851,1773949838732,-1633.38500741,5e-05,2]
[408612852,1773949838741,-3939.46032707,5e-05,2]
[408612853,1773949838751,-3963.59573596,5e-05,2]
[408612854,1773949838760,-4320.91819147,5e-05,2]
[408612855,1773949838772,-495.14140265,5e-05,2]
[408612856,1773949838782,-1188.93015341,5e-05,2]
[408612857,1773949838792,-1040.24255776,5e-05,2]
[408612858,1773949838802,-1153.22091895,5e-05,2]
[408612859,1773949838810,-22185.0,5e-05,2]
[408612860,1773949838819,-157.25774294,5e-05,2]
[408612861,1773949838828,-500.0,5e-05,2]
[408612862,1773949838848,-500.0,5e-05,2]
[408612863,1773949838858,-500.0,5e-05,2]
[408612864,1773949838867,-500.0,5e-05,2]
[408612865,1773949838877,-500.0,5e-05,2]
[408612866,1773949838887,-500.0,5e-05,2]
[408612867,1773949838897,-500.0,5e-05,2]
[408612868,1773949838907,-500.0,5e-05,2]
[408612869,1773949838917,-193.1870473,5e-05,2]
[408612870,1773949838926,-500.0,5e-05,2]
[408612871,1773949838936,-500.0,5e-05,2]
[408612872,1773949838946,-500.0,5e-05,2]
[408612873,1773949838955,-500.0,5e-05,2]
[408612874,1773949838965,-500.0,5e-05,2]
[408612875,1773949838974,-500.0,5e-05,2]
[408612876,1773949838984,-500.0,5e-05,2]
[408612877,1773949838993,-500.0,5e-05,2]
[408612878,1773949839003,-500.0,5e-05,2]
[408612879,1773949839012,-500.0,5e-05,2]
[408612880,1773949839021,-492.25090097,5e-05,2]
[408612881,1773949839031,-500.0,5e-05,2]
[408612882,1773949839040,-500.0,5e-05,2]
[408612883,1773949839049,-500.0,5e-05,2]
[408612884,1773949839059,-500.0,5e-05,2]
[408612885,1773949839068,-500.0,5e-05,2]
[408612886,1773949839077,-500.0,5e-05,2]
[408612887,1773949839087,-500.0,5e-05,2]
[408612888,1773949839097,-500.0,5e-05,2]
[408612889,1773949839108,-500.0,5e-05,2]
[408612890,1773949839118,-499.99999999,5e-05,2]
[408612891,1773949839128,-500.0,5e-05,2]
[408612892,1773949839140,-583.91302918,5e-05,2]
[408612893,1773949839150,-500.0,5e-05,2]
[408612894,1773949839160,-500.0,5e-05,2]
[408612895,1773949839171,-500.0,5e-05,2]
[408612896,1773949839182,-500.0,5e-05,2]
[408612897,1773949839191,-500.0,5e-05,2]
[408612898,1773949839201,-500.0,5e-05,2]
[408612899,1773949839210,-500.0,5e-05,2]
[408612900,1773949839219,-500.0,5e-05,2]
[408612901,1773949839229,-500.0,5e-05,2]
[408612902,1773949839238,-500.0,5e-05,2]
[408612903,1773949839247,-500.0,5e-05,2]
[408612904,1773949839258,-500.0,5e-05,2]
[408612905,1773949839268,-500.0,5e-05,2]
[408612906,1773949839277,-500.0,5e-05,2]
[408612907,1773949839287,-500.0,5e-05,2]
[408612908,1773949839297,-281.15380427,5e-05,2]
[408612909,1773949839306,-445.202766,5.093e-05,2]
[408612910,1773949839315,-162.380719,5.093e-05,2]
[408612911,1773949839325,-151.0,5.093e-05,2]
[408612912,1773949839335,-537.6845,5.093e-05,2]
[408612913,1773949839344,-162.380719,5.093e-05,2]
[408612914,1773949839353,-5376.845,5.093e-05,2]
[408612915,1773949839362,-156.587,5.093e-05,2]
[408612916,1773949839371,-2150.738,5.093e-05,2]
[408612917,1773949839381,-400.0,5.1e-05,2]
[408612918,1773949839393,-5575.788265,5.148e-05,2]
[408612919,1773949839402,-438.342755,5.171e-05,2]
[408612920,1773949839411,-2124.58433288,5.203e-05,2]
[408612921,1773949839421,-438.342755,5.235e-05,2]
[408612922,1773949839430,-438.342755,5.3e-05,2]
[408612923,1773949839439,-438.342755,5.364e-05,2]
[408612924,1773949839449,-819.49749982,5.372e-05,2]
[408612925,1773949839458,-2000.0,5.396e-05,2]
[408612926,1773949839467,-2000.0,5.396e-05,2]
[408612927,1773949839476,-2000.0,5.396e-05,2]
[408612928,1773949839485,-1000.0,5.402e-05,2]
[408612929,1773949839495,-438.342755,5.429e-05,2]
[408612930,1773949839504,-38000.0,5.435e-05,2]
[408612931,1773949839513,-38000.0,5.444e-05,2]
[408612932,1773949839523,-38000.0,5.444e-05,2]
[408612933,1773949839533,-38000.0,5.453e-05,2]
[408612934,1773949839543,-38000.0,5.453e-05,2]
[408612935,1773949839553,-150.38471514,5.458e-05,10]
[408612936,1773949839563,-38000.0,5.461e-05,2]
[408612937,1773949839573,-16272.40952546,5.461e-05,2]
[408612938,1773949839589,-14536.37544927,5.461e-05,2]
[408612946,1773949843108,-380.183,3.714e-05,2]
[408612947,1773949843217,-4619.817,3.714e-05,2]
[408612948,1773949843227,-4717.89792618,5.461e-05,2]
[408612949,1773949843238,-1734.43152336,5.461e-05,2]
[408612957,1773949846262,-738.88557573,5.461e-05,2]
[408612958,1773949846272,-2070.04564465,5.466e-05,2]
[408612959,1773949846282,-4180.6353667,5.47e-05,2]
[408612963,1773950424289,-160.720464,3.404e-05,2]
[408612964,1773950424313,-160.720464,3.438e-05,2]
[408612965,1773950424328,-1222.359072,3.438e-05,2]
[408612967,1773950751159,-3933.81730398,3.37e-05,2]
[408612986,1773951032140,-1410.83091649,3.473e-05,2]
[408613024,1773951038336,-3589.16908351,3.473e-05,2]
[408613026,1773951038345,-300.0,3.552e-05,2]
[408613028,1773951038355,-300.0,3.552e-05,2]
[408613030,1773951038365,-1200.0,3.552e-05,2]
[408613032,1773951038374,-16880.61878777,3.553e-05,2]
[408613035,1773951038385,-41483.03419064,3.553e-05,2]
[408613817,1773951046310,-281.06,3.517e-05,2]
[408613842,1773951046535,-4718.94,3.517e-05,2]
[408613845,1773951046545,-11908.98030602,3.553e-05,2]
[408614041,1773952160102,-982.20860353,2.568e-05,2]
[408614043,1773952224363,-4777.72337303,2.542e-05,2]
[408614085,1773952232511,-222.27662697,2.542e-05,2]
[408614088,1773952232521,-608.38137905,2.62e-05,2]
[408614222,1773952238478,-674.46064765,2.62e-05,2]
[408614224,1773952238488,-300.0,3.478e-05,2]
[408614226,1773952238497,-1200.0,3.478e-05,2]
[408614228,1773952238507,-3901.0138268,3.479e-05,2]
[408614230,1773952238516,-581.9898738,3.643e-05,2]
[408614232,1773952238526,-300.0,3.651e-05,2]
[408614234,1773952238535,-300.0,3.651e-05,2]
[408614236,1773952238547,-300.0,3.651e-05,2]
[408614238,1773952238557,-300.0,3.651e-05,2]
[408614240,1773952238566,-300.0,3.651e-05,2]
[408614242,1773952238575,-300.0,3.651e-05,2]
[408614244,1773952238585,-300.0,3.651e-05,2]
[408614246,1773952238595,-300.0,3.651e-05,2]
[408614248,1773952238604,-300.0,3.651e-05,2]
[408614250,1773952238614,-300.0,3.651e-05,2]
[408614252,1773952238623,-300.0,3.651e-05,2]
[408614254,1773952238632,-300.0,3.651e-05,2]
[408614256,1773952238642,-300.0,3.651e-05,2]
[408614258,1773952238651,-300.0,3.651e-05,2]
[408614260,1773952238660,-300.0,3.651e-05,2]
[408614262,1773952238669,-600.0,3.723e-05,2]
[408614264,1773952238679,-720.0,4.095e-05,2]
[408614266,1773952238688,-641.0,4.471e-05,2]
[408614268,1773952238698,-1397.0,4.471e-05,2]
[408614270,1773952238708,-2189.0,4.471e-05,2]
[408614272,1773952238717,-185.249,4.471e-05,2]
[408614274,1773952238728,-438.0,4.471e-05,2]
[408614276,1773952238738,-864.0,4.505e-05,2]
[408614278,1773952238748,-500.0,4.773e-05,2]
[408614280,1773952238763,-500.0,4.773e-05,2]
[408614282,1773952238773,-500.0,4.773e-05,2]
[408614285,1773952238784,-500.0,4.773e-05,2]
[408614286,1773952238795,-500.0,4.773e-05,2]
[408614289,1773952238805,-64696.5532375,4.8e-05,2]
[408614290,1773952238814,-65377.56613983,4.8e-05,2]
[408614294,1773952238839,-1236.73712935,4.8e-05,2]
[408614296,1773952238851,-74000.0,4.8e-05,2]
[408614508,1773952241108,-967.61586635,4.8e-05,2]
[408614509,1773952241121,-587.0,4.8e-05,2]
[408614534,1773952243892,-300.0,4.752e-05,2]
[408614535,1773952243903,-2534.73802082,4.752e-05,2]
[408614536,1773952243915,-1540.817128,4.752e-05,2]
[408614537,1773952243926,-624.44485118,4.752e-05,2]